Workbook

Sheet FlatForward
Q4: 2020-02-05 | V4: BMF
V5: Venc | W5: Ult | X5: DU | Y5: DU TERMO | Z5: Termo
Q6: MAR | R6: =X6 -> 16 | V6: mar | W6: 4.198 | X6: 16 | Z6: =W6 -> 4.198 | AA6: fev
P7: Tx. Curta | Q7: =W6 -> 4.198 | V7: abr | W7: 4.178 | X7: 38 | Y7: =X7-X6 -> 22 | Z7: =ROUND(((((1+W7/100)^(X7/252))/((1+W6/100)^(X6/252)))^(252/(Y7))-1)*100,2) -> 4.16 | AA7: mar
Q8: ABR | R8: =X7 -> 38 | V8: mai | W8: 4.15 | X8: 58 | Y8: =X8-X7 -> 20 | Z8: =ROUND(((((1+W8/100)^(X8/252))/((1+W7/100)^(X7/252)))^(252/(Y8))-1)*100,2) -> 4.1 | AA8: abr
P9: Tx. Longa | Q9: =W7 -> 4.178 | V9: jun | W9: 4.16 | X9: 78 | Y9: =X9-X8 -> 20 | Z9: 4.19 | AA9: mai
S10: =Y7 -> 22 | V10: jul | W10: 4.155 | X10: 99 | Y10: =X10-X9 -> 21 | Z10: 4.14 | AA10: jun
P11: Termo | Q11: =ROUND(((((1+Q9/100)^(R8/252))/((1+Q7/100)^(R6/252)))^(252/(S10))-1)*100,2) -> 4.16 | V11: ago | W11: 4.155 | X11: 122 | Y11: =X11-X10 -> 23 | Z11: 4.15 | AA11: jul
P12: Taxa de março | V12: set | W12: 4.15 | X12: 143 | Y12: =X12-X11 -> 21 | Z12: 4.12 | AA12: ago
V13: out | W13: 4.21 | X13: 164 | Y13: 21 | Z13: 4.62 | AA13: set
V14: nov | W14: 4.22 | X14: 185 | Y14: 21 | Z14: 4.3 | AA14: out
V15: dez | W15: 4.25 | X15: 205 | Y15: 20 | Z15: 4.53 | AA15: nov
V16: jan | W16: 4.31 | X16: 227 | Y16: =X16-X15 -> 22 | Z16: 4.87 | AA16: dez
Q18: MAR | R18: =X6 -> 16
P19: Tx. Curta | Q19: =W6 -> 4.198
Q20: JUN | R20: =X9 -> 78
P21: Tx. Longa | Q21: =W9 -> 4.16
S22: =R20-R18 -> 62
P23: Termo | Q23: =ROUND(((((1+Q21/100)^(R20/252))/((1+Q19/100)^(R18/252)))^(252/(S22))-1)*100,2) -> 4.15
P24: Tx trimestre
P25: MAR / ABR / MAI
Q30: JUL | R30: =X10 -> 99
P31: Tx. Curta | Q31: =W10 -> 4.155
Q32: JAN | R32: =X16 -> 227
P33: Tx. Longa | Q33: =W16 -> 4.31
S34: =R32-R30 -> 128
P35: Termo | Q35: =ROUND(((((1+Q33/100)^(R32/252))/((1+Q31/100)^(R30/252)))^(252/(S34))-1)*100,2) -> 4.43
P36: Tx 2º semestre

Sheet SPLINE
A1: Exemplo | I1: Please visit my website for comments and questions!
A2: Vértices | B2: Taxa | C2: Dias | D2: Spline | I2: http://www.srs1software.com
A3: =FlatForward!X6 -> 16 | B3: =FlatForward!W6 -> 4.198 | C3: 16 | D3: =Cubic_Spline($A$3:$A$13,$B$3:$B$13,C3) -> 4.197999954 | I3: Register you this freeware at:
A4: =FlatForward!X7 -> 38 | B4: =FlatForward!W7 -> 4.178 | C4: =C3+10 -> 26 | D4: =Cubic_Spline($A$3:$A$13,$B$3:$B$13,C4) -> 4.190788003 | I4: http://www.srs1software.com/cs_registration.htm
A5: =FlatForward!X8 -> 58 | B5: =FlatForward!W8 -> 4.15 | C5: =C4+10 -> 36 | D5: =Cubic_Spline($A$3:$A$13,$B$3:$B$13,C5) -> 4.180640158
A6: =FlatForward!X9 -> 78 | B6: 4.15 | C6: 46 | D6: =Cubic_Spline($A$3:$A$13,$B$3:$B$13,C6) -> 4.165676347
A7: =FlatForward!X10 -> 99 | B7: =FlatForward!W10 -> 4.155 | C7: 56 | D7: =Cubic_Spline($A$3:$A$13,$B$3:$B$13,C7) -> 4.151812942
A8: =FlatForward!X11 -> 122 | B8: =FlatForward!W11 -> 4.155 | C8: 66 | D8: =Cubic_Spline($A$3:$A$13,$B$3:$B$13,C8) -> 4.14708057
A9: =FlatForward!X12 -> 143 | B9: =FlatForward!W12 -> 4.15 | C9: 76 | D9: =Cubic_Spline($A$3:$A$13,$B$3:$B$13,C9) -> 4.149311216
A10: =FlatForward!X13 -> 164 | B10: 4.17 | C10: 86 | D10: =Cubic_Spline($A$3:$A$13,$B$3:$B$13,C10) -> 4.152360578
A11: =FlatForward!X14 -> 185 | B11: =FlatForward!W14 -> 4.22 | C11: 96 | D11: =Cubic_Spline($A$3:$A$13,$B$3:$B$13,C11) -> 4.154498434
A12: =FlatForward!X15 -> 205 | B12: =FlatForward!W15 -> 4.25 | C12: 106 | D12: =Cubic_Spline($A$3:$A$13,$B$3:$B$13,C12) -> 4.15590791
A13: =FlatForward!X16 -> 227 | B13: =FlatForward!W16 -> 4.31 | C13: 116 | D13: =Cubic_Spline($A$3:$A$13,$B$3:$B$13,C13) -> 4.156004957
C14: 126 | D14: =Cubic_Spline($A$3:$A$13,$B$3:$B$13,C14) -> 4.153806225
C15: 136 | D15: =Cubic_Spline($A$3:$A$13,$B$3:$B$13,C15) -> 4.15059463
C16: 146 | D16: =Cubic_Spline($A$3:$A$13,$B$3:$B$13,C16) -> 4.150597041
C17: 156 | D17: =Cubic_Spline($A$3:$A$13,$B$3:$B$13,C17) -> 4.157584693
C18: 166 | D18: =Cubic_Spline($A$3:$A$13,$B$3:$B$13,C18) -> 4.174203702
C19: 176 | D19: =Cubic_Spline($A$3:$A$13,$B$3:$B$13,C19) -> 4.199040981
C20: 186 | D20: =Cubic_Spline($A$3:$A$13,$B$3:$B$13,C20) -> 4.221870129
C21: 196 | D21: =Cubic_Spline($A$3:$A$13,$B$3:$B$13,C21) -> 4.23645043
C22: 206 | D22: =Cubic_Spline($A$3:$A$13,$B$3:$B$13,C22) -> 4.251927184
C23: 216 | D23: =Cubic_Spline($A$3:$A$13,$B$3:$B$13,C23) -> 4.276462819
C24: 226 | D24: =Cubic_Spline($A$3:$A$13,$B$3:$B$13,C24) -> 4.306844822

Sheet ETTJ
E1: a | F1: 4.414426e-09 | G1: 0.0002
A2: Exemplo | E2: b | F2: 7.050686571e-06 | G2: 4.1
A3: Vértices | C3: Spline | E3: c | F3: -0.001454128949
E4: d | F4: 4.220430454
A5: In | B5: Dados | C5: In | D5: Spline | E5: ETTJ | F5: INFLAÇÃO | G5: TX REAL
A6: =FlatForward!X6 -> 16 | B6: =FlatForward!W6 -> 4.198 | C6: =A6 -> 16 | D6: =Cubic_Spline($A$6:$A$16,$B$6:$B$16,C6) -> 4.197999954 | E6: =$F$1*C6^3+$F$2*C6^2+$F$3*C6+$F$4 -> 4.198987448 | F6: =$G$1*C6+$G$2 -> 4.1032 | G6: =((1+E6/100)/(1+F6/100)-1)*100 -> 0.09201201102
A7: =FlatForward!X7 -> 38 | B7: =FlatForward!W7 -> 4.178 | C7: =C6+10 -> 26 | D7: =Cubic_Spline($A$6:$A$16,$B$6:$B$16,C7) -> 4.191264218 | E7: 4.187466953 | F7: =$G$1*C7+$G$2 -> 4.1052 | G7: =((1+E7/100)/(1+F7/100)-1)*100 -> 0.0790229049
A8: =FlatForward!X8 -> 58 | B8: =FlatForward!W8 -> 4.15 | C8: =C7+10 -> 36 | D8: 4.180848502 | E8: 4.177425461 | F8: 4.1072 | G8: 0.06745495113
A9: =FlatForward!X9 -> 78 | B9: =FlatForward!W9 -> 4.16 | C9: 46 | D9: 4.164555336 | E9: 4.168889457 | F9: 4.1092 | G9: 0.05733350894
A10: =FlatForward!X10 -> 99 | B10: =FlatForward!W10 -> 4.155 | C10: 56 | D10: 4.151137193 | E10: 4.16188543 | F10: 4.1112 | G10: 0.04868393561
A11: =FlatForward!X11 -> 122 | B11: =FlatForward!W11 -> 4.155 | C11: 66 | D11: 4.151754097 | E11: 4.156439864 | F11: 4.1132 | G11: 0.04153158647
A12: =FlatForward!X12 -> 143 | B12: =FlatForward!W12 -> 4.15 | C12: 76 | D12: 4.159095808 | E12: =$F$1*C12^3+$F$2*C12^2+$F$3*C12+$F$4 -> 4.152579246 | F12: 4.1152 | G12: 0.03590181489
A13: =FlatForward!X13 -> 164 | B13: =FlatForward!W13 -> 4.21 | C13: 86 | D13: 4.159688333 | E13: 4.150330064 | F13: 4.1172 | G13: 0.0318199723
A14: =FlatForward!X14 -> 185 | B14: =FlatForward!W14 -> 4.22 | C14: 96 | D14: 4.155709685 | E14: 4.149718804 | F14: 4.1192 | G14: 0.0293114082
A15: =FlatForward!X15 -> 205 | B15: =FlatForward!W15 -> 4.25 | C15: 106 | D15: 4.155379918 | E15: 4.150771952 | F15: 4.1212 | G15: 0.02840147012
A16: =FlatForward!X16 -> 227 | B16: =FlatForward!W16 -> 4.31 | C16: 116 | D16: 4.156721459 | E16: 4.153515994 | F16: 4.1232 | G16: 0.02911550365
C17: 126 | D17: 4.152027032 | E17: 4.157977418 | F17: 4.1252 | G17: 0.03147885243
C18: 136 | D18: 4.145395024 | E18: 4.16418271 | F18: 4.1272 | G18: 0.03551685815
C19: 146 | D19: 4.156139985 | E19: 4.172158356 | F19: 4.1292 | G19: 0.04125486056
C20: =C19+10 -> 156 | D20: =Cubic_Spline($A$6:$A$16,$B$6:$B$16,C20) -> 4.187441215 | E20: =$F$1*C20^3+$F$2*C20^2+$F$3*C20+$F$4 -> 4.181930844 | F20: 4.1312 | G20: 0.04871819747
C21: =C20+10 -> 166 | D21: 4.213443965 | E21: =$F$1*C21^3+$F$2*C21^2+$F$3*C21+$F$4 -> 4.193526659 | F21: =$G$1*C21+$G$2 -> 4.1332 | G21: 0.05793220472
C22: 176 | D22: 4.219217107 | E22: 4.206972288 | F22: 4.1352 | G22: 0.06892221623
C23: 186 | D23: 4.220487386 | E23: 4.222294218 | F23: 4.1372 | G23: 0.08171356395
C24: 196 | D24: 4.231869218 | E24: 4.239518935 | F24: 4.1392 | G24: 0.09633157791
C25: 206 | D25: 4.252345549 | E25: 4.258672925 | F25: 4.1412 | G25: 0.1128015862
C26: =C25+10 -> 216 | D26: 4.278312794 | E26: 4.279782677 | F26: 4.1432 | G26: 0.1311489149
C27: =C26+10 -> 226 | D27: 4.307068598 | E27: 4.302874675 | F27: 4.1452 | G27: 0.1513988882

Sheet COPOM
B3: Venc | C3: Ult | D3: DU | E3: DU TERMO | F3: Termo | H3: Cálculo do CDI projetado
B4: mar | C4: =FlatForward!W6 -> 4.198 | D4: =FlatForward!X6 -> 16 | E4: =D4 -> 16 | F4: =C55 -> 4.16 | I4: Termo CDI | J4: Spread | K4: Meta | L4: Simulação | M4: Spread | Y4: 0 | Z4: =K5 -> 4.15 | AA4: =L5 -> 4.25
A5: T1 | B5: abr | C5: =FlatForward!W7 -> 4.178 | D5: =FlatForward!X7 -> 38 | E5: =D5-D4 -> 22 | F5: =H55 -> 4.1 | H5: CDI O | I5: =F4 -> 4.16 | K5: =I5-0.01 -> 4.15 | L5: 4.25 | Y5: =D21 -> 28 | Z5: =K5 -> 4.15 | AA5: =AA4 -> 4.25
A6: T2 | B6: mai | C6: =FlatForward!W8 -> 4.15 | D6: =FlatForward!X8 -> 58 | E6: =D6-D5 -> 20 | F6: =C64 -> 4.19 | H6: CDI 1 | I6: =K31 -> 4.03 | J6: =I6-I5 -> -0.13 | K6: =I6-0.01 -> 4.02 | L6: 4 | M6: =L6-L5 -> -0.25 | Y6: =Y5 -> 28 | Z6: =K6 -> 4.02 | AA6: =L6 -> 4
A7: T3 | B7: jun | C7: =FlatForward!W9 -> 4.16 | D7: =FlatForward!X9 -> 78 | E7: 20 | F7: =H64 -> 4.14 | G7: 4.14 | H7: CDI 2 | I7: =P31 -> 4.21 | J7: 0.18 | K7: 4.2 | L7: 4 | M7: 0 | Y7: =D22 -> 60 | Z7: =K6 -> 4.02 | AA7: =AA6 -> 4
A8: T4 | B8: jul | C8: =FlatForward!W10 -> 4.155 | D8: =FlatForward!X10 -> 99 | E8: 21 | F8: =C74 -> 4.15 | H8: CDI 3 | I8: =U31 -> 4.08 | J8: -0.13 | K8: 4.07 | L8: 4 | M8: 0 | Y8: =Y7 -> 60 | Z8: =K7 -> 4.2 | AA8: =L7 -> 4
A9: T5 | B9: ago | C9: =FlatForward!W11 -> 4.155 | D9: =FlatForward!X11 -> 122 | E9: 23 | F9: =H74 -> 4.12 | H9: CDI 4 | I9: =Z31 -> 4.68 | J9: 0.6 | K9: 4.67 | L9: 4.25 | M9: 0.25 | Y9: =D23 -> 89 | Z9: =K7 -> 4.2 | AA9: =AA8 -> 4
A10: T6 | B10: set | C10: =FlatForward!W12 -> 4.15 | D10: =FlatForward!X12 -> 143 | E10: 21 | F10: =C84 -> 4.62 | G10: 4.2 | H10: CDI 5 | I10: =K41 -> 3.96 | J10: -0.72 | K10: 3.95 | L10: 4.5 | M10: 0.25 | Y10: =Y9 -> 89 | Z10: =K8 -> 4.07 | AA10: =L8 -> 4
A11: T7 | B11: out | C11: =FlatForward!W13 -> 4.21 | D11: =FlatForward!X13 -> 164 | E11: 21 | F11: =H84 -> 4.3 | H11: CDI 6 | I11: =P41 -> 8.02 | J11: 4.06 | K11: 8.01 | L11: 4.5 | M11: 0 | Y11: =D24 -> 124 | Z11: =K8 -> 4.07 | AA11: =AA10 -> 4
A12: T8 | B12: nov | C12: =FlatForward!W14 -> 4.22 | D12: =FlatForward!X14 -> 185 | E12: 21 | F12: =C94 -> 4.53 | H12: CDI 7 | I12: =U41 -> 3.63 | J12: -4.39 | K12: 3.62 | L12: 4.75 | M12: 0.25 | Y12: =Y11 -> 124 | Z12: =K9 -> 4.67 | AA12: =L9 -> 4.25
A13: T9 | B13: dez | C13: =FlatForward!W15 -> 4.25 | D13: =FlatForward!X15 -> 205 | E13: 20 | F13: =H94 -> 4.87 | G13: 4.23 | H13: CDI 8 | Y13: =D25 -> 153 | Z13: =K9 -> 4.67 | AA13: =AA12 -> 4.25
A14: T10 | B14: jan | C14: =FlatForward!W16 -> 4.31 | D14: =FlatForward!X16 -> 227 | E14: 22 | F14: =C104 -> 4.81 | G14: 4.34 | J14: =SUM(J6:J13) -> -0.53 | M14: =SUM(M6:M13) -> 0.5 | Y14: =Y13 -> 153 | Z14: =K10 -> 3.95 | AA14: =L10 -> 4.5
C15: 4.35 | D15: 247 | E15: 20 | Y15: =D26 -> 182 | Z15: =K10 -> 3.95 | AA15: =AA14 -> 4.5
Y16: =Y15 -> 182 | Z16: =K11 -> 8.01 | AA16: =L11 -> 4.5
Y17: =D27 -> 211 | Z17: =K11 -> 8.01 | AA17: =AA16 -> 4.5
B18: Calendário COPOM 2020 | Y18: =Y17 -> 211 | Z18: =K12 -> 3.62 | AA18: =L12 -> 4.75
D19: 2020-02-05 | Y19: =D28 -> 240 | Z19: =K12 -> 3.62 | AA19: =AA18 -> 4.75
B20: (1) | C20: (2) | D20: (3) | E20: (4) | F20: (5) | Y20: =Y19 -> 240 | Z20: =K13 -> 0
B21: 2020-03-18 | C21: =NETWORKDAYS(D19,B21,Feriado)-1 -> 28 | D21: =C21+C19 -> 28 | E21: =D4 -> 16 | F21: =D21-E21 -> 12 | Z21: =Z20 -> 0
B22: 2020-05-06 | C22: =NETWORKDAYS(B21,B22,Feriado)-1 -> 32 | D22: =C22+D21 -> 60 | E22: =D6 -> 58 | F22: 2
B23: 2020-06-17 | C23: 29 | D23: =D22+C23 -> 89 | E23: =D7 -> 78 | F23: 11
B24: 2020-08-05 | C24: 35 | D24: 124 | E24: =D9 -> 122 | F24: =D24-E24 -> 2 | K24: CDI 1 | P24: CDI 2 | U24: CDI 3 | Z24: CDI 4
B25: 2020-09-16 | C25: 29 | D25: 153 | E25: =D10 -> 143 | F25: 10
B26: 2020-10-28 | C26: 29 | D26: 182 | E26: =D11 -> 164 | F26: 18 | L26: =F21 -> 12 | Q26: =F22 -> 2 | V26: =F23 -> 11 | AA26: =F24 -> 2
B27: 2020-12-09 | C27: 29 | D27: 211 | E27: =D13 -> 205 | F27: 6 | J27: Tx. Curta | K27: =F4 -> 4.16 | O27: Tx. Curta | P27: =K31 -> 4.03 | T27: Tx. Curta | U27: =P31 -> 4.21 | Y27: Tx. Curta | Z27: =U31 -> 4.08
B28: 2021-01-21 | C28: 29 | D28: 240 | L28: =E5 -> 22 | Q28: =E6 -> 20 | V28: =E8 -> 21 | AA28: =E10 -> 21
J29: Tx. Longa | K29: =F5 -> 4.1 | O29: Tx. Longa | P29: =F6 -> 4.19 | T29: Tx. Longa | U29: =F8 -> 4.15 | Y29: Tx. Longa | Z29: =F10 -> 4.62
B30: 1 | C30: Data da Reunião do Copom | M30: =L28-L26 -> 10 | R30: =Q28-Q26 -> 18 | W30: =V28-V26 -> 10 | AB30: =AA28-AA26 -> 19
B31: 2 | C31: DU entre duas datas do Copom | J31: Termo | K31: =ROUND(((((1+K29/100)^(L28/252))/((1+K27/100)^(L26/252)))^(252/(M30))-1)*100,2) -> 4.03 | O31: Termo | P31: =ROUND(((((1+P29/100)^(Q28/252))/((1+P27/100)^(Q26/252)))^(252/(R30))-1)*100,2) -> 4.21 | T31: Termo | U31: =ROUND(((((1+U29/100)^(V28/252))/((1+U27/100)^(V26/252)))^(252/(W30))-1)*100,2) -> 4.08 | Y31: Termo | Z31: =ROUND(((((1+Z29/100)^(AA28/252))/((1+Z27/100)^(AA26/252)))^(252/(AB30))-1)*100,2) -> 4.68
B32: 3 | C32: Du até a data da reunião
B33: 4 | C33: DU até o 1º dia útil do mês da reunião
B34: 5 | C34: (4) - (3) DU entre a data da reunião do Copom e o 1º dia útil do proximo mês | K34: CDI 5 | P34: CDI 6 | U34: CDI 7
L36: =F25 -> 10 | Q36: =F26 -> 18 | V36: =F27 -> 6
J37: Tx. Curta | K37: =Z31 -> 4.68 | O37: Tx. Curta | P37: =K41 -> 3.96 | T37: Tx. Curta | U37: =P41 -> 8.02
L38: =E11 -> 21 | Q38: =E12 -> 21 | V38: =E14 -> 22
J39: Tx. Longa | K39: =F11 -> 4.3 | O39: Tx. Longa | P39: =F12 -> 4.53 | T39: Tx. Longa | U39: =F14 -> 4.81
M40: =L38-L36 -> 11 | R40: =Q38-Q36 -> 3 | W40: =V38-V36 -> 16
J41: Termo | K41: =ROUND(((((1+K39/100)^(L38/252))/((1+K37/100)^(L36/252)))^(252/(M40))-1)*100,2) -> 3.96 | O41: Termo | P41: =ROUND(((((1+P39/100)^(Q38/252))/((1+P37/100)^(Q36/252)))^(252/(R40))-1)*100,2) -> 8.02 | T41: Termo | U41: =ROUND(((((1+U39/100)^(V38/252))/((1+U37/100)^(V36/252)))^(252/(W40))-1)*100,2) -> 3.63
I47: =D5 -> 38
I49: =D6 -> 58
C50: MAR | D50: =D4 -> 16 | H50: ABR
B51: Tx. Curta | C51: =C4 -> 4.198 | G51: Tx. Curta | H51: =C5 -> 4.178 | J51: =I49-I47 -> 20
C52: ABR | D52: =D5 -> 38 | H52: MAI
B53: Tx. Longa | C53: =C5 -> 4.178 | G53: Tx. Longa | H53: =C6 -> 4.15
E54: =D52-D50 -> 22
B55: Termo | C55: =ROUND(((((1+C53/100)^(D52/252))/((1+C51/100)^(D50/252)))^(252/(E54))-1)*100,2) -> 4.16 | G55: Termo | H55: =ROUND(((((1+H53/100)^(I49/252))/((1+H51/100)^(I47/252)))^(252/(J51))-1)*100,2) -> 4.1
I56: =D7 -> 78
I58: =D8 -> 99
C59: MAI | D59: =D6 -> 58 | H59: JUN
B60: Tx. Curta | C60: =C6 -> 4.15 | G60: Tx. Curta | H60: =C7 -> 4.16 | J60: =I58-I56 -> 21
C61: JUN | D61: =D7 -> 78 | H61: JUL
B62: Tx. Longa | C62: =C7 -> 4.16 | G62: Tx. Longa | H62: =C8 -> 4.155
E63: =D61-D59 -> 20
B64: Termo | C64: =ROUND(((((1+C62/100)^(D61/252))/((1+C60/100)^(D59/252)))^(252/(E63))-1)*100,2) -> 4.19 | G64: Termo | H64: =ROUND(((((1+H62/100)^(I58/252))/((1+H60/100)^(I56/252)))^(252/(J60))-1)*100,2) -> 4.14
I66: =D9 -> 122
I68: =D10 -> 143
C69: JUL | D69: =D8 -> 99 | H69: AGO
B70: Tx. Curta | C70: =C8 -> 4.155 | G70: Tx. Curta | H70: =C9 -> 4.155 | J70: =I68-I66 -> 21
C71: AGO | D71: =D9 -> 122 | H71: SET
B72: Tx. Longa | C72: =C9 -> 4.155 | G72: Tx. Longa | H72: =C10 -> 4.15
E73: =D71-D69 -> 23
B74: Termo | C74: =ROUND(((((1+C72/100)^(D71/252))/((1+C70/100)^(D69/252)))^(252/(E73))-1)*100,2) -> 4.15 | G74: Termo | H74: =ROUND(((((1+H72/100)^(I68/252))/((1+H70/100)^(I66/252)))^(252/(J70))-1)*100,2) -> 4.12
I76: =D11 -> 164
I78: =D12 -> 185
C79: SET | D79: =D10 -> 143 | H79: OUT
B80: Tx. Curta | C80: =C10 -> 4.15 | G80: Tx. Curta | H80: =C11 -> 4.21 | J80: =I78-I76 -> 21
C81: OUT | D81: =D11 -> 164 | H81: NOV
B82: Tx. Longa | C82: =C11 -> 4.21 | G82: Tx. Longa | H82: =C12 -> 4.22
E83: =D81-D79 -> 21
B84: Termo | C84: =ROUND(((((1+C82/100)^(D81/252))/((1+C80/100)^(D79/252)))^(252/(E83))-1)*100,2) -> 4.62 | G84: Termo | H84: =ROUND(((((1+H82/100)^(I78/252))/((1+H80/100)^(I76/252)))^(252/(J80))-1)*100,2) -> 4.3
I86: =D13 -> 205
I88: =D14 -> 227
C89: NOV | D89: =D12 -> 185 | H89: DEZ
B90: Tx. Curta | C90: =C12 -> 4.22 | G90: Tx. Curta | H90: =C13 -> 4.25 | J90: =I88-I86 -> 22
C91: DEZ | D91: =D13 -> 205 | H91: JAN
B92: Tx. Longa | C92: =C13 -> 4.25 | G92: Tx. Longa | H92: =C14 -> 4.31
E93: =D91-D89 -> 20
B94: Termo | C94: =ROUND(((((1+C92/100)^(D91/252))/((1+C90/100)^(D89/252)))^(252/(E93))-1)*100,2) -> 4.53 | G94: Termo | H94: =ROUND(((((1+H92/100)^(I88/252))/((1+H90/100)^(I86/252)))^(252/(J90))-1)*100,2) -> 4.87
D99: =D14 -> 227
B100: Tx. Curta | C100: =C14 -> 4.31
D101: =D15 -> 247
B102: Tx. Longa | C102: =C15 -> 4.35
E103: =D101-D99 -> 20
B104: Termo | C104: =ROUND(((((1+C102/100)^(D101/252))/((1+C100/100)^(D99/252)))^(252/(E103))-1)*100,2) -> 4.81

Sheet GRAFICO
H3: =COPOM!C21 -> 28 | N3: =COPOM!C22 -> 32 | R3: =COPOM!C23 -> 29 | T3: =COPOM!C24 -> 35 | W3: =COPOM!C25 -> 29 | Y3: =COPOM!C25 -> 29 | AA3: =COPOM!C26 -> 29 | AD3: =COPOM!C28 -> 29
G14: =COPOM!D4 -> 16
C15: =COPOM!C4 -> 4.198
H17: =COPOM!D5 -> 38
C18: =COPOM!C5 -> 4.178
I21: =COPOM!D6 -> 58
C22: =COPOM!C6 -> 4.15
K24: =COPOM!D7 -> 78
C25: =COPOM!C7 -> 4.16
M27: =COPOM!D8 -> 99
C28: =COPOM!C8 -> 4.155
O30: =COPOM!D9 -> 122
C31: =COPOM!C9 -> 4.155
C34: =COPOM!C10 -> 4.15 | P34: =COPOM!D10 -> 143
C37: =COPOM!C11 -> 4.21 | R37: =COPOM!D11 -> 164
C40: =COPOM!C12 -> 4.22 | T40: =COPOM!D12 -> 185
V42: =COPOM!D13 -> 205
C43: =COPOM!C13 -> 4.25
X45: =COPOM!D14 -> 227
C46: =COPOM!C14 -> 4.31
G54: =COPOM!D4 -> 16 | K54: =COPOM!E5 -> 22 | N54: =COPOM!E6 -> 20 | P54: =COPOM!E7 -> 20 | S54: =COPOM!E8 -> 21 | U54: =COPOM!E9 -> 23 | V54: =COPOM!E10 -> 21 | X54: =COPOM!E11 -> 21 | Z54: =COPOM!E12 -> 21 | AA54: =COPOM!E13 -> 20 | AC54: =COPOM!E14 -> 22

Sheet FERIADOS
A1: 2009-01-01 | B1: 2009-02-23 | C1: 2009-02-24 | D1: 2009-04-10 | E1: 2009-04-21 | F1: 2009-05-01 | G1: 2009-06-11 | H1: 2009-09-07 | I1: 2009-10-12 | J1: 2009-11-02 | K1: 2009-11-15 | L1: 2009-12-25
A2: 2010-01-01 | B2: 2010-02-15 | C2: 2010-02-16 | D2: 2010-04-02 | E2: 2010-04-21 | F2: 2010-05-01 | G2: 2010-06-03 | H2: 2010-09-07 | I2: 2010-10-12 | J2: 2010-11-02 | K2: 2010-11-15 | L2: 2010-12-25
A3: 2011-01-01 | B3: 2011-03-07 | C3: 2011-03-08 | D3: 2011-04-21 | E3: 2011-04-22 | F3: 2011-05-01 | G3: 2011-06-23 | H3: 2011-09-07 | I3: 2011-10-12 | J3: 2011-11-02 | K3: 2011-11-15 | L3: 2011-12-25
A4: 2012-01-01 | B4: 2012-02-20 | C4: 2012-02-21 | D4: 2012-04-06 | E4: 2012-04-21 | F4: 2012-05-01 | G4: 2012-06-07 | H4: 2012-09-07 | I4: 2012-10-12 | J4: 2012-11-02 | K4: 2012-11-15 | L4: 2012-12-25
A5: 2013-01-01 | B5: 2013-02-11 | C5: 2013-02-12 | D5: 2013-03-29 | E5: 2013-04-21 | F5: 2013-05-01 | G5: 2013-05-30 | H5: 2013-09-07 | I5: 2013-10-12 | J5: 2013-11-02 | K5: 2013-11-15 | L5: 2013-12-25
A6: 2014-01-01 | B6: 2014-03-03 | C6: 2014-03-04 | D6: 2014-04-18 | E6: 2014-04-21 | F6: 2014-05-01 | G6: 2014-06-19 | H6: 2014-09-07 | I6: 2014-10-12 | J6: 2014-11-02 | K6: 2014-11-15 | L6: 2014-12-25
A7: 2015-01-01 | B7: 2015-02-16 | C7: 2015-02-17 | D7: 2015-04-03 | E7: 2015-04-21 | F7: 2015-05-01 | G7: 2015-06-04 | H7: 2015-09-07 | I7: 2015-10-12 | J7: 2015-11-02 | K7: 2015-11-15 | L7: 2015-12-25
A8: 2016-01-01 | B8: 2016-02-08 | C8: 2016-02-09 | D8: 2016-03-25 | E8: 2016-04-21 | F8: 2016-05-01 | G8: 2016-05-26 | H8: 2016-09-07 | I8: 2016-10-12 | J8: 2016-11-02 | K8: 2016-11-15 | L8: 2016-12-25
A9: 2017-01-01 | B9: 2017-02-27 | C9: 2017-02-28 | D9: 2017-04-14 | E9: 2017-04-21 | F9: 2017-05-01 | G9: 2017-06-15 | H9: 2017-09-07 | I9: 2017-10-12 | J9: 2017-11-02 | K9: 2017-11-15 | L9: 2017-12-25
A10: 2018-01-01 | B10: 2018-02-12 | C10: 2018-02-13 | D10: 2018-03-30 | E10: 2018-04-21 | F10: 2018-05-01 | G10: 2018-05-31 | H10: 2018-09-07 | I10: 2018-10-12 | J10: 2018-11-02 | K10: 2018-11-15 | L10: 2018-12-25
A11: 2019-01-01 | B11: 2019-03-04 | C11: 2019-03-05 | D11: 2019-04-19 | E11: 2019-04-21 | F11: 2019-05-01 | G11: 2019-06-20 | H11: 2019-09-07 | I11: 2019-10-12 | J11: 2019-11-02 | K11: 2019-11-15 | L11: 2019-12-25
A12: 2020-01-01 | B12: 2020-02-24 | C12: 2020-02-25 | D12: 2020-04-10 | E12: 2020-04-21 | F12: 2020-05-01 | G12: 2020-06-11 | H12: 2020-09-07 | I12: 2020-10-12 | J12: 2020-11-02 | K12: 2020-11-15 | L12: 2020-12-25
A13: 2021-01-01 | B13: 2021-02-15 | C13: 2021-02-16 | D13: 2021-04-02 | E13: 2021-04-21 | F13: 2021-05-01 | G13: 2021-06-03 | H13: 2021-09-07 | I13: 2021-10-12 | J13: 2021-11-02 | K13: 2021-11-15 | L13: 2021-12-25
A14: 2022-01-01 | B14: 2022-02-28 | C14: 2022-03-01 | D14: 2022-04-15 | E14: 2022-04-21 | F14: 2022-05-01 | G14: 2022-06-16 | H14: 2022-09-07 | I14: 2022-10-12 | J14: 2022-11-02 | K14: 2022-11-15 | L14: 2022-12-25
A15: 2023-01-01 | B15: 2023-02-20 | C15: 2023-02-21 | D15: 2023-04-07 | E15: 2023-04-21 | F15: 2023-05-01 | G15: 2023-06-08 | H15: 2023-09-07 | I15: 2023-10-12 | J15: 2023-11-02 | K15: 2023-11-15 | L15: 2023-12-25
A16: 2024-01-01 | B16: 2024-02-12 | C16: 2024-02-13 | D16: 2024-03-29 | E16: 2024-04-21 | F16: 2024-05-01 | G16: 2024-05-30 | H16: 2024-09-07 | I16: 2024-10-12 | J16: 2024-11-02 | K16: 2024-11-15 | L16: 2024-12-25
A17: 2025-01-01 | B17: 2025-03-03 | C17: 2025-03-04 | D17: 2025-04-18 | E17: 2025-04-21 | F17: 2025-05-01 | G17: 2025-06-19 | H17: 2025-09-07 | I17: 2025-10-12 | J17: 2025-11-02 | K17: 2025-11-15 | L17: 2025-12-25
A18: 2026-01-01 | B18: 2026-02-16 | C18: 2026-02-17 | D18: 2026-04-03 | E18: 2026-04-21 | F18: 2026-05-01 | G18: 2026-06-04 | H18: 2026-09-07 | I18: 2026-10-12 | J18: 2026-11-02 | K18: 2026-11-15 | L18: 2026-12-25
A19: 2027-01-01 | B19: 2027-02-08 | C19: 2027-02-09 | D19: 2027-03-26 | E19: 2027-04-21 | F19: 2027-05-01 | G19: 2027-05-27 | H19: 2027-09-07 | I19: 2027-10-12 | J19: 2027-11-02 | K19: 2027-11-15 | L19: 2027-12-25
A20: 2028-01-01 | B20: 2028-02-28 | C20: 2028-02-29 | D20: 2028-04-14 | E20: 2028-04-21 | F20: 2028-05-01 | G20: 2028-06-15 | H20: 2028-09-07 | I20: 2028-10-12 | J20: 2028-11-02 | K20: 2028-11-15 | L20: 2028-12-25
A21: 2029-01-01 | B21: 2029-02-12 | C21: 2029-02-13 | D21: 2029-03-30 | E21: 2029-04-21 | F21: 2029-05-01 | G21: 2029-05-31 | H21: 2029-09-07 | I21: 2029-10-12 | J21: 2029-11-02 | K21: 2029-11-15 | L21: 2029-12-25
A22: 2030-01-01 | B22: 2030-03-04 | C22: 2030-03-05 | D22: 2030-04-19 | E22: 2030-04-21 | F22: 2030-05-01 | G22: 2030-06-20 | H22: 2030-09-07 | I22: 2030-10-12 | J22: 2030-11-02 | K22: 2030-11-15 | L22: 2030-12-25
A23: 2031-01-01 | B23: 2031-02-24 | C23: 2031-02-25 | D23: 2031-04-11 | E23: 2031-04-21 | F23: 2031-05-01 | G23: 2031-06-12 | H23: 2031-09-07 | I23: 2031-10-12 | J23: 2031-11-02 | K23: 2031-11-15 | L23: 2031-12-25
A24: 2032-01-01 | B24: 2032-02-09 | C24: 2032-02-10 | D24: 2032-03-26 | E24: 2032-04-21 | F24: 2032-05-01 | G24: 2032-05-27 | H24: 2032-09-07 | I24: 2032-10-12 | J24: 2032-11-02 | K24: 2032-11-15 | L24: 2032-12-25
A25: 2033-01-01 | B25: 2033-02-28 | C25: 2033-03-01 | D25: 2033-04-15 | E25: 2033-04-21 | F25: 2033-05-01 | G25: 2033-06-16 | H25: 2033-09-07 | I25: 2033-10-12 | J25: 2033-11-02 | K25: 2033-11-15 | L25: 2033-12-25
A26: 2034-01-01 | B26: 2034-02-20 | C26: 2034-02-21 | D26: 2034-04-07 | E26: 2034-04-21 | F26: 2034-05-01 | G26: 2034-06-08 | H26: 2034-09-07 | I26: 2034-10-12 | J26: 2034-11-02 | K26: 2034-11-15 | L26: 2034-12-25
A27: 2035-01-01 | B27: 2035-02-05 | C27: 2035-02-06 | D27: 2035-03-23 | E27: 2035-04-21 | F27: 2035-05-01 | G27: 2035-05-24 | H27: 2035-09-07 | I27: 2035-10-12 | J27: 2035-11-02 | K27: 2035-11-15 | L27: 2035-12-25
A28: 2036-01-01 | B28: 2036-02-25 | C28: 2036-02-26 | D28: 2036-04-11 | E28: 2036-04-21 | F28: 2036-05-01 | G28: 2036-06-12 | H28: 2036-09-07 | I28: 2036-10-12 | J28: 2036-11-02 | K28: 2036-11-15 | L28: 2036-12-25
A29: 2037-01-01 | B29: 2037-02-16 | C29: 2037-02-17 | D29: 2037-04-03 | E29: 2037-04-21 | F29: 2037-05-01 | G29: 2037-06-04 | H29: 2037-09-07 | I29: 2037-10-12 | J29: 2037-11-02 | K29: 2037-11-15 | L29: 2037-12-25
A30: 2038-01-01 | B30: 2038-03-08 | C30: 2038-03-09 | D30: 2038-04-21 | E30: 2038-04-23 | F30: 2038-05-01 | G30: 2038-06-24 | H30: 2038-09-07 | I30: 2038-10-12 | J30: 2038-11-02 | K30: 2038-11-15 | L30: 2038-12-25
A31: 2039-01-01 | B31: 2039-02-21 | C31: 2039-02-22 | D31: 2039-04-08 | E31: 2039-04-21 | F31: 2039-05-01 | G31: 2039-06-09 | H31: 2039-09-07 | I31: 2039-10-12 | J31: 2039-11-02 | K31: 2039-11-15 | L31: 2039-12-25
A32: 2040-01-01 | B32: 2040-02-13 | C32: 2040-02-14 | D32: 2040-03-30 | E32: 2040-04-21 | F32: 2040-05-01 | G32: 2040-05-31 | H32: 2040-09-07 | I32: 2040-10-12 | J32: 2040-11-02 | K32: 2040-11-15 | L32: 2040-12-25
A33: 2041-01-01 | B33: 2041-03-04 | C33: 2041-03-05 | D33: 2041-04-19 | E33: 2041-04-21 | F33: 2041-05-01 | G33: 2041-06-20 | H33: 2041-09-07 | I33: 2041-10-12 | J33: 2041-11-02 | K33: 2041-11-15 | L33: 2041-12-25
A34: 2042-01-01 | B34: 2042-02-17 | C34: 2042-02-18 | D34: 2042-04-04 | E34: 2042-04-21 | F34: 2042-05-01 | G34: 2042-06-05 | H34: 2042-09-07 | I34: 2042-10-12 | J34: 2042-11-02 | K34: 2042-11-15 | L34: 2042-12-25
A35: 2043-01-01 | B35: 2043-02-09 | C35: 2043-02-10 | D35: 2043-03-27 | E35: 2043-04-21 | F35: 2043-05-01 | G35: 2043-05-28 | H35: 2043-09-07 | I35: 2043-10-12 | J35: 2043-11-02 | K35: 2043-11-15 | L35: 2043-12-25
A36: 2044-01-01 | B36: 2044-02-29 | C36: 2044-03-01 | D36: 2044-04-15 | E36: 2044-04-21 | F36: 2044-05-01 | G36: 2044-06-16 | H36: 2044-09-07 | I36: 2044-10-12 | J36: 2044-11-02 | K36: 2044-11-15 | L36: 2044-12-25
A37: 2045-01-01 | B37: 2045-02-20 | C37: 2045-02-21 | D37: 2045-04-07 | E37: 2045-04-21 | F37: 2045-05-01 | G37: 2045-06-08 | H37: 2045-09-07 | I37: 2045-10-12 | J37: 2045-11-02 | K37: 2045-11-15 | L37: 2045-12-25
A38: 2046-01-01 | B38: 2046-02-05 | C38: 2046-02-06 | D38: 2046-03-23 | E38: 2046-04-21 | F38: 2046-05-01 | G38: 2046-05-24 | H38: 2046-09-07 | I38: 2046-10-12 | J38: 2046-11-02 | K38: 2046-11-15 | L38: 2046-12-25
A39: 2047-01-01 | B39: 2047-02-25 | C39: 2047-02-26 | D39: 2047-04-12 | E39: 2047-04-21 | F39: 2047-05-01 | G39: 2047-06-13 | H39: 2047-09-07 | I39: 2047-10-12 | J39: 2047-11-02 | K39: 2047-11-15 | L39: 2047-12-25
A40: 2048-01-01 | B40: 2048-02-17 | C40: 2048-02-18 | D40: 2048-04-03 | E40: 2048-04-21 | F40: 2048-05-01 | G40: 2048-06-04 | H40: 2048-09-07 | I40: 2048-10-12 | J40: 2048-11-02 | K40: 2048-11-15 | L40: 2048-12-25
A41: 2049-01-01 | B41: 2049-03-01 | C41: 2049-03-02 | D41: 2049-04-16 | E41: 2049-04-21 | F41: 2049-05-01 | G41: 2049-06-17 | H41: 2049-09-07 | I41: 2049-10-12 | J41: 2049-11-02 | K41: 2049-11-15 | L41: 2049-12-25
A42: 2050-01-01 | B42: 2050-02-21 | C42: 2050-02-22 | D42: 2050-04-08 | E42: 2050-04-21 | F42: 2050-05-01 | G42: 2050-06-09 | H42: 2050-09-07 | I42: 2050-10-12 | J42: 2050-11-02 | K42: 2050-11-15 | L42: 2050-12-25
A43: 2051-01-01 | B43: 2051-02-13 | C43: 2051-02-14 | D43: 2051-03-31 | E43: 2051-04-21 | F43: 2051-05-01 | G43: 2051-06-01 | H43: 2051-09-07 | I43: 2051-10-12 | J43: 2051-11-02 | K43: 2051-11-15 | L43: 2051-12-25
A44: 2052-01-01 | B44: 2052-03-04 | C44: 2052-03-05 | D44: 2052-04-19 | E44: 2052-04-21 | F44: 2052-05-01 | G44: 2052-06-20 | H44: 2052-09-07 | I44: 2052-10-12 | J44: 2052-11-02 | K44: 2052-11-15 | L44: 2052-12-25
A45: 2053-01-01 | B45: 2053-02-17 | C45: 2053-02-18 | D45: 2053-04-04 | E45: 2053-04-21 | F45: 2053-05-01 | G45: 2053-06-05 | H45: 2053-09-07 | I45: 2053-10-12 | J45: 2053-11-02 | K45: 2053-11-15 | L45: 2053-12-25
A46: 2054-01-01 | B46: 2054-02-09 | C46: 2054-02-10 | D46: 2054-03-27 | E46: 2054-04-21 | F46: 2054-05-01 | G46: 2054-05-28 | H46: 2054-09-07 | I46: 2054-10-12 | J46: 2054-11-02 | K46: 2054-11-15 | L46: 2054-12-25
A47: 2055-01-01 | B47: 2055-03-01 | C47: 2055-03-02 | D47: 2055-04-16 | E47: 2055-04-21 | F47: 2055-05-01 | G47: 2055-06-17 | H47: 2055-09-07 | I47: 2055-10-12 | J47: 2055-11-02 | K47: 2055-11-15 | L47: 2055-12-25
A48: 2056-01-01 | B48: 2056-02-14 | C48: 2056-02-15 | D48: 2056-03-31 | E48: 2056-04-21 | F48: 2056-05-01 | G48: 2056-06-01 | H48: 2056-09-07 | I48: 2056-10-12 | J48: 2056-11-02 | K48: 2056-11-15 | L48: 2056-12-25
A49: 2057-01-01 | B49: 2057-03-05 | C49: 2057-03-06 | D49: 2057-04-20 | E49: 2057-04-21 | F49: 2057-05-01 | G49: 2057-06-21 | H49: 2057-09-07 | I49: 2057-10-12 | J49: 2057-11-02 | K49: 2057-11-15 | L49: 2057-12-25
A50: 2058-01-01 | B50: 2058-02-25 | C50: 2058-02-26 | D50: 2058-04-12 | E50: 2058-04-21 | F50: 2058-05-01 | G50: 2058-06-13 | H50: 2058-09-07 | I50: 2058-10-12 | J50: 2058-11-02 | K50: 2058-11-15 | L50: 2058-12-25
A51: 2059-01-01 | B51: 2059-02-10 | C51: 2059-02-11 | D51: 2059-03-28 | E51: 2059-04-21 | F51: 2059-05-01 | G51: 2059-05-29 | H51: 2059-09-07 | I51: 2059-10-12 | J51: 2059-11-02 | K51: 2059-11-15 | L51: 2059-12-25
A52: 2060-01-01 | B52: 2060-03-01 | C52: 2060-03-02 | D52: 2060-04-16 | E52: 2060-04-21 | F52: 2060-05-01 | G52: 2060-06-17 | H52: 2060-09-07 | I52: 2060-10-12 | J52: 2060-11-02 | K52: 2060-11-15 | L52: 2060-12-25
A53: 2061-01-01 | B53: 2061-02-21 | C53: 2061-02-22 | D53: 2061-04-08 | E53: 2061-04-21 | F53: 2061-05-01 | G53: 2061-06-09 | H53: 2061-09-07 | I53: 2061-10-12 | J53: 2061-11-02 | K53: 2061-11-15 | L53: 2061-12-25
A54: 2062-01-01 | B54: 2062-02-06 | C54: 2062-02-07 | D54: 2062-03-24 | E54: 2062-04-21 | F54: 2062-05-01 | G54: 2062-05-25 | H54: 2062-09-07 | I54: 2062-10-12 | J54: 2062-11-02 | K54: 2062-11-15 | L54: 2062-12-25
A55: 2063-01-01 | B55: 2063-02-26 | C55: 2063-02-27 | D55: 2063-04-13 | E55: 2063-04-21 | F55: 2063-05-01 | G55: 2063-06-14 | H55: 2063-09-07 | I55: 2063-10-12 | J55: 2063-11-02 | K55: 2063-11-15 | L55: 2063-12-25
A56: 2064-01-01 | B56: 2064-02-18 | C56: 2064-02-19 | D56: 2064-04-04 | E56: 2064-04-21 | F56: 2064-05-01 | G56: 2064-06-05 | H56: 2064-09-07 | I56: 2064-10-12 | J56: 2064-11-02 | K56: 2064-11-15 | L56: 2064-12-25
A57: 2065-01-01 | B57: 2065-02-09 | C57: 2065-02-10 | D57: 2065-03-27 | E57: 2065-04-21 | F57: 2065-05-01 | G57: 2065-05-28 | H57: 2065-09-07 | I57: 2065-10-12 | J57: 2065-11-02 | K57: 2065-11-15 | L57: 2065-12-25
A58: 2066-01-01 | B58: 2066-02-22 | C58: 2066-02-23 | D58: 2066-04-09 | E58: 2066-04-21 | F58: 2066-05-01 | G58: 2066-06-10 | H58: 2066-09-07 | I58: 2066-10-12 | J58: 2066-11-02 | K58: 2066-11-15 | L58: 2066-12-25
A59: 2067-01-01 | B59: 2067-02-14 | C59: 2067-02-15 | D59: 2067-04-01 | E59: 2067-04-21 | F59: 2067-05-01 | G59: 2067-06-02 | H59: 2067-09-07 | I59: 2067-10-12 | J59: 2067-11-02 | K59: 2067-11-15 | L59: 2067-12-25
A60: 2068-01-01 | B60: 2068-03-05 | C60: 2068-03-06 | D60: 2068-04-20 | E60: 2068-04-21 | F60: 2068-05-01 | G60: 2068-06-21 | H60: 2068-09-07 | I60: 2068-10-12 | J60: 2068-11-02 | K60: 2068-11-15 | L60: 2068-12-25
A61: 2069-01-01 | B61: 2069-02-25 | C61: 2069-02-26 | D61: 2069-04-12 | E61: 2069-04-21 | F61: 2069-05-01 | G61: 2069-06-13 | H61: 2069-09-07 | I61: 2069-10-12 | J61: 2069-11-02 | K61: 2069-11-15 | L61: 2069-12-25
A62: 2070-01-01 | B62: 2070-02-10 | C62: 2070-02-11 | D62: 2070-03-28 | E62: 2070-04-21 | F62: 2070-05-01 | G62: 2070-05-29 | H62: 2070-09-07 | I62: 2070-10-12 | J62: 2070-11-02 | K62: 2070-11-15 | L62: 2070-12-25
